bitfinex/quotes_SOLUSD_20250714
["timestamp","ask_amount","ask_price","bid_price","bid_amount"]
[1752490527600,0.8,167.41,167.4,154.88468397]
[1752490528105,0.1,167.41,167.4,160.05004599]
[1752490528601,0.1,167.41,167.4,154.88468397]
[1752490531192,0.79,167.41,167.4,154.88468397]
[1752490531501,0.79,167.41,167.4,136.95468397]
[1752490532705,0.79,167.41,167.4,16.81468397]
[1752490533082,0.79,167.41,167.4,30.97]
[1752490538598,0.79,167.41,167.4,30.95]
[1752490538999,10.04007397,167.41,167.4,30.95]
[1752490539202,10.04007397,167.41,167.36,16.78468397]
[1752490539394,9.25007397,167.39,167.35,89.2]
[1752490539600,0.69,167.38,167.36,47.70468397]
[1752490539999,9.94007397,167.38,167.36,47.70468397]
[1752490540199,0.69,167.37,167.36,47.70468397]
[1752490540881,0.69,167.39,167.36,47.70468397]
[1752490541103,0.69,167.38,167.36,47.70468397]
[1752490541409,0.69,167.39,167.36,136.90468397]
[1752490541596,0.69,167.39,167.36,142.07004599]
[1752490541798,0.69,167.39,167.36,136.90468397]
[1752490542009,0.69,167.39,167.36,142.07004599]
[1752490543086,0.79,167.41,167.38,5.16536202]
[1752490543306,0.69,167.4,167.39,47.70468397]
[1752490547812,0.1,167.41,167.39,53.46745324]
[1752490548012,0.79,167.41,167.39,48.30209122]
[1752490548216,0.79,167.41,167.39,137.50209122]
[1752490548408,0.79,167.41,167.39,136.90468397]
[1752490548713,0.69,167.4,167.39,136.90468397]
[1752490552913,0.1,167.41,167.39,136.90468397]
[1752490553116,0.79,167.41,167.39,136.90468397]
[1752490553316,0.1,167.41,167.39,111.15004599]
[1752490553506,0.1,167.41,167.4,30.9]
[1752490554218,0.1,167.41,167.4,120.1]
[1752490554419,0.79,167.41,167.4,120.1]
[1752490555022,0.1,167.41,167.4,120.1]
[1752490558826,0.1,167.41,167.4,142.05004599]
[1752490559214,0.1,167.41,167.4,136.88468397]
[1752490560137,0.1,167.41,167.4,105.98468397]
[1752490560435,0.79,167.41,167.4,105.98468397]
[1752490560640,0.79,167.41,167.4,136.88468397]
[1752490561216,0.1,167.41,167.4,136.88468397]
[1752490562350,0.79,167.41,167.4,136.88468397]
[1752490566021,0.1,167.41,167.4,136.88468397]
[1752490567060,0.79,167.41,167.4,136.88468397]
[1752490569543,0.1,167.41,167.4,136.88468397]
[1752490570247,0.1,167.41,167.4,136.91468397]
[1752490570557,0.1,167.41,167.4,142.08004599]
[1752490571663,0.1,167.41,167.4,160.29004599]
[1752490574839,0.1,167.41,167.4,155.12468397]
[1752490575044,0.1,167.41,167.4,160.29004599]
[1752490577852,0.1,167.43,167.41,123.81468397]
[1752490578064,0.1,167.43,167.42,52.81004599]
[1752490578255,0.1,167.43,167.42,141.91004599]
[1752490580549,0.1,167.43,167.42,142.19004599]
[1752490581074,0.1,167.43,167.42,186.12004599]
[1752490583942,0.1,167.43,167.42,192.09304802]
[1752490584166,0.06,167.44,167.43,123.71468397]
[1752490584356,0.06,167.44,167.43,160.02004599]
[1752490585282,0.06,167.44,167.43,172.54679127]
[1752490585571,0.06,167.44,167.43,166.57414599]
[1752490587069,0.06,167.44,167.43,172.54679127]
[1752490588146,0.06,167.48,167.43,172.54679127]
[1752490588147,0.06,167.48,167.44,22.75675581]
[1752490588347,0.06,167.48,167.47,39.88004599]
[1752490588547,0.06,167.48,167.47,70.72004599]
[1752490589169,0.78,167.48,167.47,65.55468397]
[1752490590764,0.78,167.48,167.47,16.78468397]
[1752490590970,0.78,167.48,167.47,47.62468397]
[1752490591962,0.78,167.48,167.47,89.0]
[1752490592174,10.03007397,167.48,167.47,88.28]
[1752490592767,9.25007397,167.46,167.45,119.12]
[1752490593282,9.97007397,167.46,167.45,119.12]
[1752490594175,0.72,167.46,167.45,135.90468397]
[1752490596158,0.06,167.48,167.46,16.78468397]
[1752490596359,0.78,167.48,167.47,30.84]
[1752490596567,0.06,167.48,167.47,47.62468397]
[1752490596768,0.78,167.48,167.47,47.62468397]
[1752490597672,0.78,167.48,167.47,16.78468397]
[1752490597852,0.78,167.48,167.47,47.62468397]
[1752490601461,0.78,167.48,167.47,137.22468397]
[1752490602081,0.06,167.48,167.47,137.22468397]
[1752490603398,0.78,167.48,167.47,137.22468397]
[1752490606490,0.06,167.48,167.47,137.22468397]
[1752490607184,0.78,167.48,167.47,137.22468397]
[1752490611871,0.78,167.48,167.47,120.44]
[1752490612187,0.78,167.48,167.47,137.22468397]
[1752490612688,0.06,167.48,167.47,137.22468397]
[1752490612989,0.78,167.48,167.47,137.22468397]
[1752490614178,0.06,167.48,167.47,137.22468397]
[1752490616774,0.78,167.48,167.47,137.22468397]
[1752490620495,0.78,167.48,167.47,120.42]
[1752490621073,10.03007397,167.48,167.47,120.42]
[1752490621802,0.06,167.48,167.47,120.42]
[1752490621989,9.31007397,167.48,167.47,137.89468397]
[1752490622493,9.31007397,167.48,167.47,137.20468397]
[1752490623294,0.06,167.48,167.47,137.20468397]
[1752490623500,10.00007397,167.48,167.47,137.20468397]
[1752490624383,0.75,167.48,167.47,137.20468397]
[1752490624705,10.00007397,167.48,167.47,137.20468397]
[1752490625000,0.75,167.48,167.47,137.20468397]
[1752490625295,10.00007397,167.48,167.47,137.20468397]
[1752490626299,0.06,167.48,167.47,137.20468397]
[1752490626504,9.31007397,167.48,167.47,137.89468397]
[1752490626698,9.31007397,167.48,167.47,137.20468397]
[1752490627300,0.06,167.48,167.47,137.20468397]
[1752490627603,0.06,167.48,167.47,137.89468397]
[1752490627799,0.06,167.48,167.47,137.20468397]
[1752490628005,0.06,167.48,167.47,137.89468397]
[1752490631376,0.06,167.48,167.47,160.99004599]
[1752490633512,0.06,167.48,167.47,137.18468397]
[1752490635014,0.75,167.48,167.47,47.58468397]
[1752490635376,10.00007397,167.48,167.47,47.61468397]
[1752490635586,0.75,167.48,167.47,47.61468397]
[1752490635804,10.00007397,167.48,167.47,47.61468397]
[1752490636702,0.06,167.48,167.47,52.78004599]
[1752490637793,0.06,167.48,167.47,47.61468397]
[1752490638092,0.06,167.48,167.47,53.47004599]
[1752490639787,0.06,167.48,167.47,137.21468397]
[1752490640383,0.06,167.48,167.47,142.38004599]
[1752490642009,0.06,167.48,167.47,160.31004599]
[1752490642214,0.06,167.48,167.47,155.14468397]
[1752490642813,0.06,167.48,167.47,155.83468397]
[1752490645409,0.06,167.48,167.47,161.00004599]
[1752490648804,0.1,167.5,167.49,34.71468397]
[1752490649109,0.1,167.5,167.49,155.05468397]
[1752490649314,0.1,167.5,167.49,137.12468397]
[1752490650699,0.8,167.5,167.49,137.12468397]
[1752490651103,0.1,167.5,167.49,137.12468397]
[1752490653502,0.8,167.5,167.49,137.12468397]
[1752490653705,0.8,167.5,167.49,106.32468397]
[1752490654021,10.05007397,167.5,167.49,137.10468397]
[1752490654391,0.8,167.5,167.49,137.10468397]
[1752490654594,10.05007397,167.5,167.49,137.10468397]
[1752490655124,0.8,167.5,167.49,137.10468397]
[1752490655422,10.05007397,167.5,167.49,137.10468397]
[1752490656105,0.8,167.5,167.49,137.10468397]
[1752490656424,10.05007397,167.5,167.49,137.10468397]
[1752490657104,0.8,167.5,167.49,137.10468397]
[1752490657335,10.05007397,167.5,167.49,137.10468397]
[1752490660410,0.8,167.5,167.49,137.10468397]
[1752490660629,10.05007397,167.5,167.49,137.10468397]
[1752490661326,0.1,167.5,167.49,137.10468397]
[1752490661512,9.35007397,167.5,167.49,137.10468397]
[1752490662309,0.1,167.5,167.49,137.10468397]
[1752490663836,0.1,167.5,167.49,137.78468397]
[1752490664531,0.1,167.5,167.49,160.88004599]
[1752490666634,0.1,167.5,167.49,106.32468397]
[1752490666831,0.8,167.5,167.49,137.10468397]
[1752490667623,0.1,167.5,167.49,137.10468397]
[1752490667818,0.1,167.5,167.49,137.78468397]
[1752490668217,0.1,167.5,167.49,142.95004599]
[1752490669344,0.1,167.5,167.49,160.88004599]
[1752490669538,0.1,167.5,167.49,166.85504599]
[1752490669708,0.1,167.5,167.49,160.88004599]
[1752490676042,0.1,167.5,167.49,130.10004599]
[1752490676245,0.1,167.5,167.49,160.86004599]
[1752490676644,0.1,167.5,167.49,130.10004599]
[1752490676847,0.1,167.5,167.49,160.86004599]
[1752490677738,0.1,167.5,167.49,155.69468397]
[1752490677944,0.1,167.5,167.49,160.86004599]
[1752490678654,0.1,167.5,167.49,155.01468397]
[1752490679025,0.1,167.5,167.49,160.18004599]
[1752490680545,0.1,167.5,167.49,160.87004599]
[1752490685941,0.1,167.5,167.49,160.18004599]
[1752490687742,0.1,167.5,167.49,155.01468397]
[1752490688155,0.1,167.5,167.49,160.18004599]
[1752490690258,0.1,167.5,167.49,160.87004599]
[1752490691460,0.1,167.5,167.49,155.70468397]
[1752490691655,0.1,167.5,167.49,155.01468397]
[1752490691836,0.1,167.5,167.49,160.18004599]
[1752490692340,0.1,167.5,167.49,160.87004599]
[1752490693767,0.1,167.5,167.49,155.01468397]
[1752490694559,0.78,167.5,167.49,155.01468397]
[1752490694942,0.78,167.5,167.49,106.32468397]
[1752490695266,0.78,167.5,167.49,137.06468397]
[1752490696052,0.78,167.5,167.49,120.28]
[1752490697884,10.03007397,167.5,167.49,30.74]
[1752490698242,10.03007397,167.5,167.48,0.03]
[1752490698470,9.93007397,167.49,167.48,30.77]
[1752490698667,9.25007397,167.48,167.47,30.77]
[1752490698856,9.93007397,167.48,167.47,30.77]
[1752490699657,9.93007397,167.48,167.47,0.03]
[1752490708755,9.25007397,167.47,167.46,30.74]
[1752490708953,9.95007397,167.47,167.42,89.54]
[1752490709153,9.25007397,167.44,167.43,30.72]
[1752490709378,9.95007397,167.44,167.43,30.72]
[1752490713677,9.25007397,167.45,167.44,16.78468397]
[1752490713869,9.25007397,167.45,167.44,48.21468397]
[1752490714063,9.25007397,167.46,167.44,48.21468397]
[1752490714387,9.25007397,167.45,167.44,48.21468397]
[1752490714762,9.25007397,167.46,167.44,48.21468397]
[1752490714975,9.25007397,167.45,167.44,48.21468397]
[1752490716258,9.25007397,167.45,167.44,65.40468397]
[1752490716460,9.95007397,167.45,167.44,47.50468397]
[1752490716660,9.95007397,167.45,167.44,137.04468397]
[1752490717081,9.25007397,167.45,167.44,137.04468397]
[1752490717284,9.25007397,167.46,167.44,137.04468397]
[1752490717582,9.25007397,167.45,167.44,137.04468397]
[1752490718180,9.95007397,167.46,167.44,137.04468397]
[1752490718362,9.25007397,167.45,167.44,137.04468397]
[1752490718986,9.95007397,167.46,167.44,137.04468397]
[1752490719279,9.95007397,167.45,167.44,106.32468397]
[1752490719480,9.95007397,167.45,167.44,89.54]
[1752490719789,9.95007397,167.45,167.44,120.26]
[1752490722677,9.95007397,167.45,167.44,30.72]
[1752490723969,9.25007397,167.42,167.41,106.35468397]
[1752490724160,9.95007397,167.42,167.41,137.07468397]
[1752490725585,9.25007397,167.42,167.41,137.07468397]
[1752490730592,9.25007397,167.45,167.41,142.91619128]
[1752490730782,9.25007397,167.46,167.45,16.78468397]
[1752490730977,9.25007397,167.46,167.45,137.04468397]
[1752490731292,9.25007397,167.47,167.45,137.04468397]
[1752490731475,9.25007397,167.46,167.45,137.75468397]
[1752490733196,9.25007397,167.46,167.45,137.04468397]
[1752490734089,9.25007397,167.46,167.45,137.75468397]
[1752490734593,9.25007397,167.47,167.45,137.75468397]
[1752490734892,9.25007397,167.48,167.45,142.88619128]
[1752490735094,9.25007397,167.47,167.46,0.71]
[1752490735985,9.25007397,167.48,167.47,16.78468397]
[1752490736185,9.25007397,167.48,167.47,47.48468397]
[1752490738993,9.35007397,167.5,167.47,142.81619128]
[1752490739202,9.25007397,167.49,167.47,137.68468397]
[1752490741288,9.25007397,167.49,167.48,56.7]
[1752490741703,0.1,167.5,167.49,16.78468397]
[1752490741895,9.35007397,167.5,167.49,16.78468397]
[1752490743180,0.1,167.5,167.49,16.78468397]
[1752490743381,10.01007397,167.5,167.49,106.32468397]
[1752490744510,10.01007397,167.5,167.49,108.47182828]
[1752490744803,9.35007397,167.5,167.49,108.47182828]
[1752490745106,9.35007397,167.5,167.49,107.47075342]
[1752490745682,10.01007397,167.5,167.49,111.9995187]
[1752490745975,10.01007397,167.5,167.49,111.82835356]
[1752490746407,10.01007397,167.5,167.49,111.82738778]
[1752490746709,10.01007397,167.5,167.49,111.63323085]
[1752490746906,10.01007397,167.5,167.49,111.5394559]
[1752490747208,10.01007397,167.5,167.49,111.45619128]
[1752490747410,10.01007397,167.5,167.49,111.539494]
[1752490747779,10.01007397,167.5,167.49,106.40798669]
[1752490748003,10.01007397,167.5,167.49,111.45619128]
[1752490751902,10.01007397,167.5,167.49,111.5394585]
[1752490753999,10.01007397,167.5,167.49,106.40795119]
[1752490754202,10.01007397,167.5,167.49,111.5394585]
[1752490757208,10.01007397,167.5,167.49,106.40795119]
[1752490757405,10.01007397,167.5,167.49,111.5394585]
[1752490759310,10.01007397,167.5,167.49,89.59608108]
[1752490759613,10.01007397,167.5,167.49,0.08326722]
[1752490765992,11.54227397,167.5,167.49,0.08326722]
[1752490772313,11.54227397,167.5,167.43,30.66]
[1752490772617,9.25007397,167.44,167.43,136.95749783]
[1752490773622,9.25007397,167.44,167.43,137.63749783]
[1752490774392,9.25007397,167.44,167.43,142.76900514]
[1752490775105,9.25007397,167.44,167.43,136.95749783]
[1752490776414,9.25007397,167.44,167.43,137.02653689]
[1752490778109,9.25007397,167.44,167.43,137.70653689]
[1752490778804,9.25007397,167.44,167.43,137.02653689]
[1752490779004,9.25007397,167.44,167.43,30.72903906]
[1752490781523,9.25007397,167.44,167.43,31.40903906]
[1752490782135,9.25007397,167.44,167.43,36.54054637]
[1752490785302,9.25007397,167.44,167.43,53.32523034]
[1752490785503,9.25007397,167.45,167.44,16.78468397]
[1752490785714,9.25007397,167.45,167.44,53.23619128]
[1752490787023,9.25007397,167.45,167.44,48.10468397]
[1752490787319,9.25007397,167.45,167.44,53.23619128]
[1752490790613,9.25007397,167.45,167.44,142.74900514]
[1752490792341,9.25007397,167.46,167.44,142.74900514]
[1752490792637,9.25007397,167.46,167.45,22.59619128]
[1752490793833,9.25007397,167.47,167.46,16.78468397]
[1752490794041,9.25007397,167.47,167.46,53.23619128]
[1752490795420,9.25007397,167.48,167.46,53.23619128]
[1752490795629,9.25007397,167.48,167.47,22.59619128]
[1752490796933,9.25007397,167.48,167.47,21.91619128]
[1752490797126,9.96007397,167.48,167.47,16.78468397]
[1752490798224,9.25007397,167.47,167.46,106.29749783]
[1752490798564,9.25007397,167.47,167.46,120.13281386]
[1752490799237,9.93007397,167.48,167.46,120.13281386]
[1752490799551,9.25007397,167.47,167.46,30.62]
[1752490800416,9.93007397,167.47,167.46,30.62]
[1752490800617,0.68,167.47,167.45,89.51281386]
[1752490800920,9.25007397,167.47,167.46,142.71900514]
[1752490801121,9.25007397,167.48,167.46,142.04900514]
[1752490801344,9.25007397,167.48,167.47,22.58619128]
[1752490801918,0.68,167.48,167.46,89.51281386]
[1752490802125,9.93007397,167.48,167.47,30.62]
[1752490804130,9.25007397,167.48,167.47,35.75150731]
[1752490805752,9.25007397,167.48,167.47,30.62]
[1752490806128,9.93007397,167.48,167.47,30.62]
[1752490810742,9.25007397,167.48,167.47,30.62]
[1752490812860,9.93007397,167.48,167.47,30.62]
[1752490813238,9.25007397,167.48,167.47,30.62]
[1752490813933,1.5502,167.44,167.36,0.03]
[1752490814154,9.25007397,167.37,167.36,0.9]
[1752490814336,9.25007397,167.34,167.32,0.03]
[1752490814645,9.25007397,167.31,167.29,0.2]
[1752490814857,9.92007397,167.31,167.29,0.2]
[1752490815051,14.78787511,167.31,167.29,0.2]
[1752490815237,9.25007397,167.3,167.28,0.03]
[1752490815440,9.25007397,167.27,167.26,0.03]
[1752490815947,9.92007397,167.27,167.26,0.03]
[1752490818833,9.25007397,167.27,167.26,0.7]
[1752490819051,9.25007397,167.27,167.26,5.84646699]
[1752490819254,9.25007397,167.27,167.26,22.63115096]
[1752490820161,9.25007397,167.27,167.26,48.24468397]
[1752490820367,9.25007397,167.27,167.26,53.39115096]
[1752490825167,9.25007397,167.27,167.26,59.36986673]
[1752490825383,9.25007397,167.28,167.27,16.78468397]
[1752490825560,9.25007397,167.28,167.27,22.60115096]
[1752490825899,9.25007397,167.29,167.27,117.34761795]
[1752490826047,9.25007397,167.29,167.28,58.46761795]
[1752490826870,9.25007397,167.29,167.27,89.6]
[1752490827063,9.25007397,167.28,167.27,89.6]
[1752490827256,0.67,167.31,167.26,112.23115096]
[1752490827257,9.25007397,167.27,167.26,112.23115096]
[1752490827453,9.25007397,167.27,167.26,142.95115096]
[1752490827661,9.25007397,167.27,167.26,120.35]
[1752490828153,9.92007397,167.27,167.26,0.03]
[1752490832168,9.25007397,167.27,167.26,0.03]
[1752490832759,9.92007397,167.27,167.26,0.03]
[1752490838477,9.25007397,167.27,167.26,0.03]
[1752490840479,9.92007397,167.27,167.26,0.03]
[1752490844480,9.92007397,167.27,167.25,0.03]
[1752490844673,11.49697397,167.26,167.25,0.03]
[1752490849880,10.82697397,167.26,167.25,0.03]
[1752490850103,9.25007397,167.26,167.25,0.03]
[1752490851186,9.92007397,167.26,167.25,0.03]
[1752490853803,9.25007397,167.26,167.25,0.03]
[1752490853999,9.25007397,167.26,167.25,0.69]
[1752490856607,9.31007397,167.26,167.25,0.69]
[1752490857010,9.31007397,167.26,167.25,26.05320408]
[1752490857784,9.31007397,167.26,167.25,17.47468397]
[1752490858307,9.31007397,167.26,167.25,26.05320408]
[1752490858694,9.31007397,167.26,167.25,17.47468397]
[1752490859208,9.31007397,167.26,167.25,22.61740711]
[1752490859399,9.31007397,167.26,167.25,0.69]
[1752490861087,9.31007397,167.26,167.25,0.03]
[1752490861288,9.31007397,167.26,167.25,0.75]
[1752490861902,9.31007397,167.26,167.25,0.03]
[1752490862912,9.98007397,167.26,167.25,0.03]
[1752490863118,9.31007397,167.26,167.25,0.03]
[1752490863490,9.31007397,167.26,167.25,0.75]
[1752490867196,9.31007397,167.26,167.25,0.03]
[1752490868103,9.31007397,167.26,167.25,0.75]
[1752490870907,9.31007397,167.26,167.25,31.41]
[1752490871908,9.31007397,167.26,167.25,53.33740711]
[1752490872110,9.31007397,167.26,167.25,142.93740711]
[1752490873807,9.31007397,167.26,167.25,112.27740711]
[1752490874021,9.31007397,167.26,167.25,142.93740711]
[1752490874324,0.06,167.26,167.25,142.93740711]
[1752490880413,0.06,167.26,167.25,168.93740711]
[1752490881434,0.06,167.26,167.25,186.83740711]
[1752490881812,9.25007397,167.3,167.26,106.38468397]
[1752490882028,9.31007397,167.31,167.3,16.78468397]
[1752490882250,9.31007397,167.31,167.3,53.30740711]
[1752490882428,0.06,167.31,167.3,53.30740711]
[1752490882618,9.31007397,167.31,167.3,53.30740711]
[1752490884313,0.06,167.31,167.3,53.30740711]
[1752490884637,9.31007397,167.31,167.3,53.30740711]
[1752490885330,0.06,167.31,167.3,142.90740711]
[1752490885534,9.31007397,167.31,167.3,137.76468397]
[1752490885718,9.31007397,167.31,167.3,142.90740711]
[1752490886340,0.06,167.31,167.3,142.90740711]
[1752490886527,9.31007397,167.31,167.3,142.90740711]
[1752490887636,0.06,167.31,167.3,142.88740711]
[1752490887833,9.31007397,167.31,167.3,142.88740711]
[1752490888144,9.31007397,167.31,167.3,112.24740711]
[1752490888321,9.31007397,167.31,167.3,142.88740711]
[1752490889230,0.06,167.31,167.3,137.02468397]
[1752490889538,9.31007397,167.31,167.3,89.6]
[1752490889736,9.31007397,167.31,167.3,120.24]
[1752490890726,9.98007397,167.31,167.3,120.24]
[1752490890923,9.31007397,167.31,167.3,120.24]
[1752490891424,9.31007397,167.31,167.3,30.64]
[1752490893151,9.31007397,167.31,167.3,31.36]
[1752490893353,9.31007397,167.31,167.3,48.14468397]
[1752490893655,9.31007397,167.31,167.3,53.28740711]
[1752490893953,0.06,167.33,167.31,16.78468397]
[1752490894247,9.25007397,167.35,167.33,22.93018397]
[1752490894451,9.25007397,167.35,167.34,48.14468397]
[1752490894631,9.25007397,167.35,167.34,53.28740711]
[1752490896034,9.25007397,167.35,167.34,48.14468397]
[1752490896354,9.25007397,167.35,167.34,53.28740711]
[1752490896930,9.25007397,167.36,167.35,16.78468397]
[1752490897144,9.25007397,167.36,167.35,22.64740711]
[1752490897740,9.25007397,167.37,167.35,22.64740711]
[1752490897939,9.25007397,167.37,167.36,36.50272314]
[1752490899554,9.25007397,167.37,167.36,31.36]
[1752490899750,9.31007397,167.38,167.36,36.50272314]
[1752490899947,9.25007397,167.37,167.36,36.50272314]
[1752490900344,9.25007397,167.37,167.36,31.36]
[1752490900942,9.25007397,167.37,167.36,35.78272314]
[1752490901150,9.25007397,167.37,167.36,30.64]
[1752490903143,9.25007397,167.37,167.36,120.24]
[1752490904152,9.25007397,167.37,167.36,120.96]
[1752490906356,9.25007397,167.37,167.36,120.24]
[1752490906565,9.96007397,167.37,167.36,120.24]
[1752490906757,9.96007397,167.37,167.36,30.64]
[1752490907453,9.96007397,167.37,167.32,0.72]
[1752490907660,9.25007397,167.34,167.33,47.42468397]
[1752490907849,9.25007397,167.34,167.33,53.28740711]
[1752490908065,9.25007397,167.35,167.33,53.28740711]
[1752490908264,9.25007397,167.34,167.33,47.42468397]
[1752490908440,9.25007397,167.35,167.33,47.42468397]
[1752490908641,9.25007397,167.37,167.33,163.62230543]
[1752490908846,9.25007397,167.37,167.35,16.78468397]
[1752490909171,9.25007397,167.37,167.36,31.36]
[1752490909365,9.25007397,167.37,167.36,36.50272314]
[1752490909666,9.31007397,167.38,167.37,16.78468397]
[1752490909872,9.31007397,167.38,167.37,22.64740711]
[1752490911356,9.31007397,167.38,167.37,17.50468397]
[1752490911658,9.31007397,167.38,167.37,22.64740711]
[1752490911868,9.31007397,167.38,167.37,112.24740711]
[1752490912173,9.31007397,167.38,167.37,107.10468397]
[1752490914872,9.31007397,167.38,167.37,89.6]
[1752490915062,10.02007397,167.38,167.37,89.6]
[1752490915262,9.25007397,167.35,167.34,89.6]
[1752490915464,9.25007397,167.35,167.34,120.22]
[1752490915971,9.25007397,167.35,167.34,30.62]
[1752490916148,9.96007397,167.35,167.34,30.62]
[1752490916354,9.25007397,167.35,167.34,30.62]
[1752490920170,9.25007397,167.35,167.34,31.3]
[1752490920878,9.25007397,167.35,167.34,146.2502176]
[1752490921068,0.06,167.38,167.34,146.2502176]
[1752490921069,9.25007397,167.36,167.34,146.2502176]
[1752490921382,9.25007397,167.35,167.34,137.00468397]
[1752490921754,9.25007397,167.36,167.34,137.68468397]
[1752490922079,9.25007397,167.36,167.35,0.68]
[1752490922472,9.25007397,167.36,167.35,9.24553363]
[1752490923176,9.25007397,167.37,167.35,115.6302176]
[1752490923348,9.25007397,167.36,167.35,106.38468397]
[1752490923550,9.25007397,167.36,167.35,145.5702176]
[1752490923971,9.25007397,167.36,167.35,146.2502176]
[1752490924155,9.25007397,167.37,167.35,146.2502176]
[1752490924373,9.31007397,167.38,167.36,9.24553363]
[1752490924675,9.31007397,167.38,167.37,48.08468397]
[1752490926762,9.31007397,167.38,167.37,56.6502176]
[1752490927681,0.06,167.38,167.37,56.6502176]
[1752490927980,0.06,167.38,167.37,146.2502176]
[1752490928361,0.06,167.38,167.37,137.68468397]
[1752490928574,0.06,167.38,167.37,146.2502176]
[1752490929656,9.31007397,167.38,167.37,137.68468397]
[1752490929851,9.31007397,167.38,167.37,146.2502176]
[1752490930055,0.06,167.38,167.37,146.2502176]
[1752490934382,0.06,167.38,167.37,106.38468397]
[1752490934583,0.06,167.38,167.37,137.00468397]
[1752490934785,9.31007397,167.38,167.37,137.00468397]
[1752490935982,9.31007397,167.38,167.37,137.68468397]
[1752490939685,0.06,167.38,167.37,142.82027917]
[1752490941483,0.06,167.38,167.37,137.68468397]
[1752490941685,0.06,167.38,167.37,142.82027917]
[1752490943897,0.06,167.38,167.37,112.20027917]
[1752490944096,0.06,167.38,167.37,142.82027917]
[1752490946493,0.06,167.38,167.37,160.72027917]
[1752490946789,0.06,167.38,167.37,106.38468397]
[1752490946985,9.31007397,167.38,167.37,137.00468397]
[1752490952489,9.99007397,167.38,167.37,89.6]
[1752490952689,9.25007397,167.36,167.35,106.38468397]
[1752490952889,9.25007397,167.36,167.35,137.00468397]
[1752490953393,9.25007397,167.36,167.35,120.22]
[1752490953593,9.25007397,167.36,167.35,137.00468397]
[1752490953801,9.93007397,167.36,167.35,120.22]
[1752490954004,9.93007397,167.36,167.35,89.6]
[1752490954210,11.55077397,167.36,167.35,89.6]
[1752490954622,11.55077397,167.36,167.34,30.62]
[1752490954833,9.93007397,167.35,167.34,30.62]
[1752490955692,9.25007397,167.34,167.33,30.65]
[1752490955920,9.93007397,167.34,167.33,30.65]
[1752490956306,9.93007397,167.34,167.33,0.03]
[1752490956505,9.93007397,167.34,167.33,30.65]
[1752490960622,9.25007397,167.34,167.33,30.65]
[1752490961134,9.93007397,167.34,167.33,30.65]
[1752490963128,9.25007397,167.34,167.33,30.65]
[1752490963332,9.25007397,167.34,167.33,31.35]
[1752490964634,9.25007397,167.34,167.33,30.65]
[1752490964850,9.25007397,167.34,167.33,31.35]
[1752490965534,9.25007397,167.34,167.33,30.65]
[1752490967450,9.93007397,167.34,167.33,30.65]
[1752490971049,9.25007397,167.34,167.33,30.65]
[1752490971525,9.93007397,167.34,167.33,30.65]
[1752490971724,9.25007397,167.34,167.33,31.35]
[1752490973058,9.25007397,167.34,167.33,48.13468397]
[1752490974149,9.25007397,167.34,167.33,137.73468397]
[1752490975258,9.25007397,167.34,167.33,120.25]
[1752490976572,9.93007397,167.34,167.33,120.25]
[1752490977164,9.25007397,167.34,167.33,120.25]
[1752490977963,9.96007397,167.34,167.33,120.25]
[1752490978563,9.25007397,167.34,167.33,120.25]
[1752490980058,9.25007397,167.34,167.33,30.65]
[1752490980252,9.25007397,167.34,167.33,0.03]
[1752490980862,9.96007397,167.34,167.33,0.03]
[1752490982149,9.25007397,167.34,167.33,0.03]
[1752490982569,9.96007397,167.34,167.33,0.03]
[1752490983052,9.25007397,167.34,167.33,0.03]
[1752490983252,9.25007397,167.34,167.33,0.72]
[1752490985480,9.25007397,167.34,167.33,22.64027917]
[1752490985697,0.06,167.38,167.33,22.64027917]
[1752490985698,9.25007397,167.35,167.33,112.24027917]
[1752490985852,9.25007397,167.36,167.35,16.78468397]
[1752490986055,9.25007397,167.36,167.35,22.61027917]
[1752490986287,9.25007397,167.36,167.35,28.88037917]
[1752490987776,0.06,167.38,167.35,28.88037917]
[1752490987777,9.31007397,167.38,167.35,28.88037917]
[1752490987954,9.25007397,167.37,167.36,31.29]